bitfinex/quotes_BTCUSD_20211001
["timestamp","ask_amount","ask_price","bid_price","bid_amount"]
[1633046402344,0.00406645,43830.0,43829.0,0.018135]
[1633046402741,0.00406645,43830.0,43829.0,0.076135]
[1633046403945,0.00406645,43830.0,43829.0,0.07596989]
[1633046404548,0.00406645,43830.0,43829.0,0.01796989]
[1633046404747,0.00406645,43830.0,43829.0,0.07596989]
[1633046405750,0.00406645,43830.0,43829.0,0.07417751]
[1633046405950,0.00406645,43830.0,43829.0,0.058]
[1633046406150,0.00406645,43830.0,43826.0,0.18514086]
[1633046406348,0.00406645,43830.0,43827.0,0.229769]
[1633046406750,0.00406645,43830.0,43828.0,0.342286]
[1633046406949,0.00406645,43830.0,43829.0,0.366271]
[1633046407150,0.00218219,43830.0,43829.0,0.366271]
[1633046407553,0.00218219,43830.0,43829.0,0.016271]
[1633046408015,0.00238219,43830.0,43829.0,0.016271]
[1633046408354,0.00365813,43830.0,43829.0,0.016271]
[1633046408552,0.00365813,43830.0,43826.0,0.18514086]
[1633046408752,0.00365813,43830.0,43829.0,0.053]
[1633046409152,0.00238219,43830.0,43829.0,0.053]
[1633046409552,0.0030007,43830.0,43829.0,0.053]
[1633046410156,0.0030007,43830.0,43826.0,0.09244086]
[1633046410751,0.0030007,43830.0,43826.0,0.14544086]
[1633046411012,0.0030007,43830.0,43826.0,0.053]
[1633046411958,0.21904012,43830.0,43826.0,0.053]
[1633046412159,0.00123644,43827.0,43824.0,0.00062]
[1633046412357,0.00126181,43825.0,43824.0,0.00062]
[1633046412757,0.00126181,43825.0,43824.0,0.03862]
[1633046412956,0.31789995,43825.0,43824.0,0.03862]
[1633046413157,0.07667323,43825.0,43824.0,0.03862]
[1633046413557,0.30644223,43825.0,43824.0,0.03862]
[1633046414018,0.30644223,43825.0,43824.0,0.00062]
[1633046414558,0.44654115,43825.0,43824.0,0.00062]
[1633046414762,0.50215966,43825.0,43824.0,0.00062]
[1633046415263,0.36206074,43825.0,43824.0,0.00062]
[1633046416258,0.60497347,43825.0,43824.0,0.00062]
[1633046416459,0.70497347,43825.0,43824.0,0.00062]
[1633046416659,0.70797347,43825.0,43824.0,0.00062]
[1633046416857,0.46506074,43825.0,43824.0,0.00062]
[1633046417061,0.36453367,43825.0,43824.0,0.00062]
[1633046417259,0.36453367,43825.0,43823.0,0.09347664]
[1633046417260,0.36508626,43825.0,43823.0,0.09347664]
[1633046417458,0.59336726,43825.0,43823.0,0.09347664]
[1633046417662,0.51795584,43825.0,43823.0,0.09347664]
[1633046418059,0.45866851,43825.0,43823.0,0.09347664]
[1633046418458,0.22889951,43825.0,43823.0,0.09347664]
[1633046418659,0.22889951,43825.0,43823.0,0.10747664]
[1633046418660,0.28189951,43825.0,43823.0,0.10747664]
[1633046419858,0.281281,43825.0,43823.0,0.10747664]
[1633046420060,0.00061851,43824.0,43823.0,0.10747664]
[1633046420260,0.00061851,43824.0,43823.0,0.09347664]
[1633046420659,0.05961851,43824.0,43823.0,0.09347664]
[1633046422060,0.00061851,43824.0,43823.0,0.09347664]
[1633046422660,0.06461851,43824.0,43823.0,0.09347664]
[1633046424262,0.00061851,43824.0,43823.0,0.09347664]
[1633046424660,0.06061851,43824.0,43823.0,0.09347664]
[1633046426064,0.00061851,43824.0,43823.0,0.09347664]
[1633046426267,0.00274998,43824.0,43823.0,0.09347664]
[1633046426663,0.04374998,43824.0,43823.0,0.13147664]
[1633046426866,0.04374998,43824.0,43823.0,0.16791705]
[1633046427464,0.05477941,43824.0,43823.0,0.16791705]
[1633046427668,0.05477941,43824.0,43823.0,0.39111705]
[1633046427866,0.0002,43831.0,43830.0,0.0098]
[1633046428066,0.0002,43831.0,43830.0,0.2350155]
[1633046428270,0.0002,43831.0,43830.0,0.23371975]
[1633046428669,0.0002,43831.0,43830.0,0.57316495]
[1633046428867,0.0002,43831.0,43830.0,1.05939771]
[1633046429066,0.0002,43831.0,43830.0,0.91542095]
[1633046429268,0.0002,43831.0,43830.0,1.14518995]
[1633046429467,0.0002,43831.0,43830.0,0.71979628]
[1633046429666,0.0002,43831.0,43830.0,0.49002728]
[1633046429867,0.0002,43831.0,43830.0,0.28471975]
[1633046430065,0.0002,43831.0,43830.0,0.0098]
[1633046430666,0.0002,43831.0,43830.0,0.28994311]
[1633046430868,0.0002,43831.0,43830.0,0.47576947]
[1633046431466,0.0002,43831.0,43830.0,0.84018003]
[1633046431467,0.00171982,43831.0,43830.0,0.84018003]
[1633046431766,0.00171982,43831.0,43830.0,1.19610903]
[1633046432027,0.00171982,43831.0,43830.0,0.97290903]
[1633046432170,0.00171982,43831.0,43830.0,0.83169847]
[1633046432365,0.00171982,43831.0,43830.0,0.96810269]
[1633046432568,0.00171982,43831.0,43830.0,0.86810269]
[1633046432765,0.00171982,43831.0,43830.0,1.03510269]
[1633046432966,0.01053654,43831.0,43830.0,1.03510269]
[1633046433165,0.01053654,43831.0,43830.0,0.81095958]
[1633046434276,0.00901672,43831.0,43830.0,0.81095958]
[1633046434470,0.00901672,43831.0,43830.0,0.91168968]
[1633046434668,0.00901672,43831.0,43830.0,0.97968968]
[1633046434868,0.00901672,43831.0,43830.0,0.97915958]
[1633046436070,0.00901672,43831.0,43830.0,0.91115958]
[1633046436271,0.00901672,43831.0,43830.0,0.91168968]
[1633046436469,0.00901672,43831.0,43830.0,0.91115958]
[1633046436669,0.01053666,43831.0,43830.0,0.97115958]
[1633046437071,0.01053666,43831.0,43830.0,0.97168968]
[1633046437268,0.01053666,43831.0,43830.0,0.97115958]
[1633046438869,0.01053666,43831.0,43830.0,0.97168968]
[1633046439270,3.666e-05,43831.0,43830.0,0.97168968]
[1633046440069,3.666e-05,43831.0,43830.0,0.91168968]
[1633046440274,3.666e-05,43831.0,43830.0,0.91115958]
[1633046440875,3.666e-05,43831.0,43830.0,0.97615958]
[1633046441277,3.666e-05,43831.0,43830.0,0.62679958]
[1633046441477,3.666e-05,43831.0,43830.0,0.52679958]
[1633046442473,3.666e-05,43831.0,43830.0,0.46179958]
[1633046442675,3.666e-05,43831.0,43830.0,0.68499958]
[1633046442975,3.666e-05,43831.0,43830.0,0.85799958]
[1633046444576,3.666e-05,43831.0,43830.0,0.78499958]
[1633046444777,3.666e-05,43831.0,43830.0,0.85599958]
[1633046445175,3.666e-05,43831.0,43830.0,0.63279958]
[1633046445978,3.666e-05,43831.0,43830.0,0.85599958]
[1633046446178,0.0002,43832.0,43831.0,0.65]
[1633046446379,0.0002,43832.0,43831.0,0.016253]
[1633046446583,0.05141917,43832.0,43830.0,0.04620422]
[1633046446778,0.00124274,43831.0,43830.0,0.04620422]
[1633046447380,0.07341501,43831.0,43830.0,0.04620422]
[1633046448178,0.07341501,43831.0,43823.0,0.09347664]
[1633046448779,0.01929072,43830.0,43823.0,0.15447664]
[1633046448979,0.01929072,43830.0,43824.0,0.0182202]
[1633046449281,0.45645328,43828.0,43824.0,0.0182202]
[1633046449477,0.45645328,43828.0,43825.0,0.229769]
[1633046449882,0.22821928,43828.0,43826.0,0.18091183]
[1633046450081,0.01929072,43830.0,43827.0,0.01756517]
[1633046450877,0.01929072,43830.0,43829.0,0.4]
[1633046451078,0.00929072,43830.0,43829.0,0.73982912]
[1633046451679,0.00929072,43830.0,43829.0,0.39759912]
[1633046451879,0.00929072,43830.0,43829.0,0.229747]
[1633046452079,0.00929072,43830.0,43827.0,0.00128017]
[1633046452480,0.00929072,43830.0,43828.0,0.229769]
[1633046452678,0.00929072,43830.0,43829.0,0.20115541]
[1633046454079,0.01430158,43830.0,43829.0,0.20115541]
[1633046454479,0.01430158,43830.0,43829.0,0.22436269]
[1633046454679,0.01430158,43830.0,43829.0,0.45466179]
[1633046454879,0.01430158,43830.0,43829.0,0.52166179]
[1633046455080,0.01430158,43830.0,43829.0,0.52113169]
[1633046455279,0.01430158,43830.0,43829.0,0.62113169]
[1633046456079,0.01430158,43830.0,43829.0,0.55413169]
[1633046456882,0.00705279,43831.0,43830.0,0.02860315]
[1633046457082,0.00705279,43831.0,43830.0,0.04486215]
[1633046457480,0.00705279,43831.0,43830.0,0.04476215]
[1633046458281,0.6345209,43833.0,43832.0,0.00062]
[1633046458680,0.6845209,43833.0,43832.0,0.00062]
[1633046458879,0.6845209,43833.0,43832.0,0.05662]
[1633046459287,0.6845209,43833.0,43832.0,0.05787789]
[1633046459288,0.19092917,43833.0,43832.0,0.05787789]
[1633046459481,0.19092917,43833.0,43832.0,0.38764689]
[1633046459681,0.19809297,43833.0,43832.0,0.386389]
[1633046459879,0.19809297,43833.0,43832.0,0.31797373]
[1633046460081,0.19809297,43833.0,43832.0,0.36197373]
[1633046460282,0.20373292,43833.0,43832.0,0.26197373]
[1633046460884,0.20373292,43833.0,43832.0,0.47837836]
[1633046461084,0.20373292,43833.0,43832.0,0.92890846]
[1633046461483,0.04775292,43833.0,43832.0,2.13890846]
[1633046461690,0.0006,43847.0,43839.0,0.10441898]
[1633046461887,0.0006,43847.0,43841.0,0.10213641]
[1633046461888,0.0004,43842.0,43841.0,0.10213641]
[1633046462083,0.0004,43842.0,43841.0,0.47913601]
[1633046462285,0.0004,43842.0,43841.0,1.62582594]
[1633046462484,0.0004,43842.0,43841.0,1.9273242]
[1633046462884,0.0002,43842.0,43841.0,1.69182594]
[1633046463285,0.0004,43845.0,43843.0,0.016229]
[1633046463497,0.0004,43845.0,43844.0,0.38113327]
[1633046463685,0.0004,43845.0,43844.0,1.59166337]
[1633046463885,0.0004,43845.0,43844.0,1.69166337]
[1633046464486,0.0004,43845.0,43844.0,1.91486337]
[1633046464885,0.0004,43845.0,43844.0,1.98786337]
[1633046465286,0.00606622,43845.0,43844.0,1.98786337]
[1633046465487,0.00606622,43845.0,43844.0,1.76466337]
[1633046465688,0.00606622,43845.0,43844.0,1.61452072]
[1633046465887,0.0114438,43845.0,43844.0,1.61452072]
[1633046466085,0.0114438,43845.0,43844.0,1.54152072]
[1633046466890,0.00665232,43849.0,43847.0,0.00062]
[1633046467087,0.00665232,43849.0,43848.0,0.41749762]
[1633046467289,0.00665232,43849.0,43848.0,0.01802772]
[1633046467489,0.00665232,43849.0,43848.0,0.33177181]
[1633046467688,0.00665232,43849.0,43848.0,0.67381881]
[1633046468149,0.00665232,43849.0,43848.0,0.89433955]
[1633046468351,0.00665232,43849.0,43848.0,0.94433955]
[1633046468553,0.00665232,43849.0,43848.0,1.07685054]
[1633046468952,0.00665232,43849.0,43848.0,1.15085054]
[1633046469953,0.00665232,43849.0,43848.0,1.20085054]
[1633046470151,0.00665232,43849.0,43848.0,1.20032044]
[1633046470352,0.00665232,43849.0,43848.0,1.12632044]
[1633046470552,0.00665232,43849.0,43848.0,1.12685054]
[1633046470754,0.01071694,43849.0,43848.0,1.12685054]
[1633046470952,0.01071694,43849.0,43848.0,1.23508997]
[1633046471954,0.01609388,43849.0,43848.0,1.02134588]
[1633046472158,0.01609388,43849.0,43848.0,2.15734588]
[1633046472955,0.01609388,43849.0,43848.0,2.22234588]
[1633046473155,0.01609388,43849.0,43848.0,1.01234588]
[1633046473355,0.01609388,43849.0,43848.0,1.42192816]
[1633046474361,0.01609388,43849.0,43848.0,1.35692816]
[1633046474562,0.01609388,43849.0,43848.0,2.56692816]
[1633046474764,0.0016333,43857.0,43849.0,1.1]
[1633046474960,0.0016333,43857.0,43849.0,2.8641177]
[1633046475163,0.0016333,43857.0,43849.0,2.8646478]
[1633046475361,0.0016333,43857.0,43849.0,1.6546478]
[1633046475760,0.0016333,43857.0,43849.0,2.8646478]
[1633046476161,0.0016333,43857.0,43853.0,0.00559999]
[1633046476362,0.0016333,43857.0,43853.0,0.37709532]
[1633046476561,0.0016333,43857.0,43853.0,0.33699631]
[1633046476760,0.0016333,43857.0,43853.0,0.47463119]
[1633046476962,0.0016333,43857.0,43853.0,1.97283119]
[1633046477363,0.0016333,43857.0,43854.0,0.16432179]
[1633046477560,0.0016333,43857.0,43854.0,0.26485189]
[1633046477762,0.0016333,43857.0,43854.0,0.11796975]
[1633046478360,0.0016333,43857.0,43854.0,1.32796975]
[1633046478964,0.0016333,43857.0,43854.0,1.40096975]
[1633046480162,0.0016333,43857.0,43854.0,1.32796975]
[1633046480962,0.0016333,43857.0,43854.0,0.19096975]
[1633046481164,0.0016333,43857.0,43854.0,0.29028116]
[1633046481365,0.0016333,43857.0,43854.0,1.50028116]
[1633046481564,0.0016333,43857.0,43855.0,0.00340661]
[1633046481766,0.0012,43856.0,43855.0,0.54203748]
[1633046481965,0.0012,43856.0,43855.0,1.76714027]
[1633046482163,0.0004,43856.0,43855.0,1.76714027]
[1633046482367,0.00676824,43858.0,43856.0,0.22809447]
[1633046482567,0.00676824,43858.0,43857.0,2.62862069]
[1633046482764,0.00676824,43858.0,43857.0,2.4914528]
[1633046482964,0.00676824,43858.0,43857.0,2.5914528]
[1633046483168,0.00080824,43859.0,43858.0,0.25838376]
[1633046483366,0.0014,43860.0,43858.0,0.4072574]
[1633046483566,0.02085709,43864.0,43859.0,0.3743129]
[1633046483767,0.02085709,43864.0,43860.0,1.36878349]
[1633046483964,0.02085709,43864.0,43860.0,1.22803838]
[1633046484167,0.02040142,43864.0,43860.0,1.55123838]
[1633046484466,0.02040142,43864.0,43861.0,0.33082189]
[1633046485065,0.02040142,43864.0,43861.0,0.23082189]
[1633046486168,0.02040142,43864.0,43861.0,0.229608]
[1633046486965,0.02040142,43864.0,43861.0,0.296608]
[1633046487367,0.02040142,43864.0,43861.0,0.3340994]
[1633046487567,0.02040142,43864.0,43861.0,0.4340994]
[1633046487771,0.02040142,43864.0,43861.0,0.43287333]
[1633046487772,0.09028826,43862.0,43861.0,0.43287333]
[1633046487976,0.00400166,43862.0,43861.0,0.33287333]
[1633046488169,0.00400166,43862.0,43861.0,5.33287333]
[1633046488372,0.00400166,43862.0,43853.0,0.00559999]
[1633046488572,0.0012291,43856.0,43853.0,0.00559999]
[1633046488871,0.07119776,43854.0,43853.0,0.06159999]
[1633046489268,0.07119776,43854.0,43853.0,0.30701125]
[1633046490276,0.07119776,43854.0,43853.0,0.25101125]
[1633046490473,0.0012291,43856.0,43853.0,0.25101125]
[1633046490671,0.0012291,43856.0,43854.0,0.016219]
[1633046491071,0.23951067,43855.0,43853.0,0.32101125]
[1633046491473,0.23951067,43855.0,43853.0,0.07559999]
[1633046492275,0.23951067,43855.0,43853.0,0.00559999]
[1633046492473,0.25845711,43855.0,43853.0,0.00559999]
[1633046492677,0.01894644,43855.0,43853.0,0.00559999]
[1633046492878,0.00938058,43862.0,43854.0,0.01813842]
[1633046493076,0.0015191,43855.0,43854.0,0.01813842]
[1633046493275,0.0015191,43855.0,43854.0,0.03436242]
[1633046493674,0.0015191,43855.0,43854.0,0.13436242]
[1633046494075,0.0015191,43855.0,43854.0,0.13611658]
[1633046494276,0.0015191,43855.0,43854.0,0.13436242]
[1633046494475,0.0068954,43855.0,43854.0,0.13436242]
[1633046494676,0.0068954,43855.0,43854.0,0.18489252]
[1633046494876,0.0068954,43855.0,43854.0,0.24636242]
[1633046495479,0.0068954,43855.0,43854.0,0.24689252]
[1633046495680,0.0068954,43855.0,43854.0,0.24814295]
[1633046496877,0.0068954,43855.0,43854.0,0.31914295]
[1633046497078,0.0068954,43855.0,43854.0,0.31861285]
[1633046497278,0.0012,43862.0,43854.0,0.31861285]
[1633046497679,0.0012,43862.0,43854.0,0.26736242]
[1633046497879,0.01896143,43861.0,43854.0,0.249224]
[1633046498282,0.30127468,43855.0,43854.0,0.016224]
[1633046498484,0.6,43854.0,43852.0,0.13331928]
[1633046498688,0.00123679,43848.0,43847.0,0.00062]
[1633046498881,0.00252744,43848.0,43847.0,0.00062]
[1633046499081,0.00123679,43848.0,43847.0,0.00062]
[1633046499282,0.15150135,43854.0,43847.0,0.08851243]
[1633046499481,0.00125874,43852.0,43847.0,0.08851243]
[1633046499681,0.00125874,43852.0,43847.0,0.00062]
[1633046500691,0.00537679,43853.0,43851.0,0.89088734]
[1633046500886,0.00537679,43853.0,43852.0,0.016229]
[1633046501081,0.00537679,43853.0,43852.0,0.1631774]
[1633046501282,0.00537679,43853.0,43852.0,0.0167591]
[1633046501483,0.00537679,43853.0,43852.0,0.16451123]
[1633046501688,0.0012,43862.0,43852.0,0.37274043]
[1633046501886,0.0012,43862.0,43861.0,0.00128519]
[1633046502082,0.0012,43862.0,43861.0,0.01749919]
[1633046502481,0.0012,43862.0,43861.0,0.16869619]
[1633046502682,0.0012,43862.0,43861.0,0.01802929]
[1633046502885,0.0012,43862.0,43861.0,0.11802929]
[1633046503082,0.0012,43862.0,43861.0,0.42543989]
[1633046503286,0.0012,43862.0,43861.0,0.49090979]
[1633046503482,0.02017641,43862.0,43861.0,1.09090979]
[1633046503683,0.02017641,43862.0,43861.0,0.94429563]
[1633046503887,0.02017641,43862.0,43861.0,0.96239829]
[1633046503888,0.00138561,43862.0,43861.0,0.96239829]
[1633046504083,0.01150629,43863.0,43861.0,1.29758829]
[1633046504282,0.01150629,43863.0,43862.0,1.27212222]
[1633046504484,0.03635029,43864.0,43863.0,0.00062]
[1633046504685,0.03635029,43864.0,43863.0,0.016832]
[1633046504686,0.03759787,43864.0,43863.0,0.016832]
[1633046504884,0.03259787,43864.0,43863.0,0.016832]
[1633046505283,0.03259787,43864.0,43863.0,0.082832]
[1633046505485,0.03259787,43864.0,43863.0,0.93121335]
[1633046505486,0.03135029,43864.0,43863.0,0.93121335]
[1633046505685,0.03135029,43864.0,43863.0,1.48310534]
[1633046505885,0.0008,43866.0,43864.0,0.00338971]
[1633046506083,0.0008,43866.0,43864.0,0.02088425]
[1633046506285,0.0012,43868.0,43866.0,0.016209]
[1633046506483,0.0012,43868.0,43867.0,0.016206]
[1633046507084,0.0012,43868.0,43867.0,0.081206]
[1633046507886,0.15760671,43868.0,43867.0,0.081206]
[1633046508086,0.15760671,43868.0,43867.0,0.065]
[1633046508087,0.00246486,43868.0,43867.0,0.065]
[1633046508684,0.00246486,43868.0,43863.0,0.00062]
[1633046508887,0.09837754,43868.0,43864.0,0.016208]
[1633046509086,0.15376226,43867.0,43863.0,0.00062]
[1633046509486,0.11937549,43868.0,43864.0,0.01808479]
[1633046509685,0.0012948,43865.0,43864.0,0.01808479]
[1633046510286,0.0012948,43865.0,43864.0,0.03429379]
[1633046510487,0.0412,43868.0,43864.0,0.75446745]
[1633046510687,0.0412,43868.0,43867.0,1.01744416]
[1633046510888,0.0412,43868.0,43867.0,1.17557416]
[1633046511092,0.0142,43868.0,43867.0,0.2748671]
[1633046511291,0.0142,43868.0,43867.0,0.174337]
[1633046511489,0.0012,43868.0,43867.0,0.8832602]
[1633046511688,0.0012,43868.0,43867.0,0.72611768]
[1633046511888,0.0012,43868.0,43867.0,0.82611768]
[1633046512288,0.0012,43868.0,43867.0,1.04931768]
[1633046512888,0.0012,43868.0,43867.0,0.82611768]
[1633046513146,0.0012,43868.0,43867.0,0.89511768]
[1633046513346,0.0012,43868.0,43867.0,0.34511768]
[1633046513954,0.01484137,43871.0,43867.0,0.47628778]
[1633046514152,1.37e-06,43871.0,43870.0,0.01741681]
[1633046514351,1.37e-06,43871.0,43870.0,0.17111693]
[1633046514550,1.37e-06,43871.0,43870.0,0.22111693]
[1633046514946,1.37e-06,43871.0,43870.0,0.72211739]
[1633046515146,1.37e-06,43871.0,43870.0,0.56891739]
[1633046515347,1.37e-06,43871.0,43870.0,0.50574737]
[1633046515748,1.37e-06,43871.0,43870.0,0.65318787]
[1633046516151,1.37e-06,43871.0,43870.0,0.50574737]
[1633046516354,1.37e-06,43871.0,43870.0,0.36550584]
[1633046516556,1.37e-06,43871.0,43870.0,0.36497574]
[1633046517153,1.37e-06,43871.0,43870.0,0.42697574]
[1633046517352,1.37e-06,43871.0,43870.0,0.42058163]
[1633046517552,1.37e-06,43871.0,43870.0,0.52058163]
[1633046518352,0.0008,43872.0,43870.0,0.45858163]
[1633046518553,0.0008,43872.0,43871.0,0.26846824]
[1633046518754,0.0004,43880.0,43872.0,1.1162]
[1633046518755,0.0008,43875.0,43872.0,1.1162]
[1633046518956,0.0008,43875.0,43874.0,0.01749667]
[1633046519255,0.0008,43875.0,43874.0,0.01802677]
[1633046519653,0.0004,43875.0,43874.0,0.01802677]
[1633046519852,0.0004,43875.0,43874.0,0.24122677]
[1633046520054,0.019432,43875.0,43874.0,0.24122677]
[1633046520255,0.019032,43875.0,43874.0,0.94122677]
[1633046520454,0.0004,43876.0,43874.0,1.05926306]
[1633046520655,0.0004,43876.0,43875.0,0.01743087]
[1633046520857,0.0004,43876.0,43875.0,0.11743087]
[1633046521862,0.00120798,43874.0,43863.0,0.22852874]
[1633046522057,0.00120798,43874.0,43863.0,0.00062]
[1633046522058,0.00122934,43870.0,43863.0,0.00062]
[1633046522261,0.00120798,43874.0,43867.0,0.22174561]
[1633046522459,0.00120798,43874.0,43863.0,0.00062]
[1633046522659,0.00127531,43877.0,43864.0,0.75]
[1633046522858,0.00124632,43867.0,43863.0,0.00062]
[1633046523060,0.00124632,43867.0,43863.0,0.05762]
[1633046523457,0.00124632,43867.0,43865.0,0.22207813]
[1633046523660,0.001,43874.0,43866.0,0.25]
[1633046523858,0.34269317,43874.0,43865.0,0.22207813]
[1633046524061,0.34269317,43874.0,43872.0,0.22708792]
[1633046524259,0.00123329,43873.0,43872.0,0.22708792]
[1633046525067,0.06023329,43873.0,43872.0,0.22708792]
[1633046525461,0.09030618,43873.0,43872.0,0.22708792]
[1633046525861,0.06023329,43873.0,43872.0,0.23368214]
[1633046526261,0.06023329,43873.0,43872.0,0.22868214]
[1633046526461,0.00123329,43873.0,43872.0,0.00659422]
[1633046527061,0.06623329,43873.0,43872.0,0.00659422]
[1633046528462,0.00123329,43873.0,43872.0,0.00659422]
[1633046529062,0.06223329,43873.0,43872.0,0.00659422]
[1633046529862,0.06223329,43873.0,43872.0,1.64371657]
[1633046530465,0.00123329,43873.0,43872.0,1.64371657]
[1633046530867,0.00242801,43881.0,43872.0,1.75815992]
[1633046531166,0.0012,43881.0,43873.0,1.89662298]
[1633046531365,0.0012,43881.0,43874.0,1.63712235]
[1633046531566,0.0012,43881.0,43875.0,0.1]
[1633046531767,0.0012,43881.0,43877.0,0.24975095]
[1633046531964,0.0012,43881.0,43878.0,1.7920209]
[1633046532162,0.0012,43881.0,43879.0,1.63712235]
[1633046532565,0.0012,43881.0,43878.0,1.63712235]
[1633046532965,0.0012,43881.0,43879.0,0.1]
[1633046533169,0.02764331,43880.0,43879.0,1.63712235]
[1633046533969,0.35440339,43877.0,43872.0,0.09347033]
[1633046534171,0.00121584,43868.0,43864.0,0.234567]
[1633046534372,0.16885318,43868.0,43864.0,0.16909022]
[1633046534568,0.44734299,43868.0,43864.0,0.16909022]
[1633046534766,0.44734299,43868.0,43863.0,0.00062]
[1633046534767,1.05,43867.0,43863.0,0.00062]
[1633046534973,1.76987254,43864.0,43847.0,0.06636952]
[1633046535269,1.76987254,43864.0,43847.0,0.00062]
[1633046535270,0.0024808,43851.0,43847.0,0.00062]
[1633046535470,0.00226774,43848.0,43840.0,0.0018]
[1633046535670,0.00226774,43848.0,43837.0,0.15303727]
[1633046535671,0.00257192,43842.0,43837.0,0.15303727]
[1633046535871,0.13872443,43837.0,43832.0,0.00062]
[1633046536073,0.00126923,43833.0,43832.0,0.00062]
[1633046536269,0.38251919,43833.0,43830.0,0.02850315]
[1633046536475,0.20279419,43833.0,43830.0,0.02850315]
[1633046536669,0.04431051,43833.0,43830.0,0.02850315]
[1633046536870,0.04431051,43833.0,43831.0,0.00487281]
[1633046537071,0.09331051,43833.0,43831.0,0.00487281]
[1633046537269,0.23098215,43832.0,43831.0,0.00487281]
[1633046537472,0.39491787,43832.0,43831.0,0.00487281]
[1633046537870,0.50613336,43832.0,43831.0,0.00487281]
[1633046538071,0.67047336,43832.0,43831.0,0.00487281]
[1633046538271,0.82959096,43832.0,43831.0,0.00487281]
[1633046538469,1.13959096,43832.0,43831.0,0.00487281]
[1633046538670,1.29052096,43832.0,43831.0,0.00487281]
[1633046538870,1.29204082,43832.0,43831.0,0.00487281]
[1633046539069,1.34704082,43832.0,43831.0,0.00487281]
[1633046539477,0.83099924,43831.0,43830.0,0.02337596]
[1633046539672,0.5322989,43831.0,43830.0,0.02337596]
[1633046539873,0.3322989,43831.0,43830.0,0.02337596]
[1633046540076,0.2322989,43831.0,43830.0,0.02337596]
[1633046540372,0.3322989,43831.0,43830.0,0.02337596]
[1633046541172,0.3892989,43831.0,43822.0,0.00019418]
[1633046541372,0.00101633,43823.0,43822.0,0.00019418]
[1633046541572,0.19197795,43823.0,43822.0,0.00019418]
[1633046541975,0.27756357,43823.0,43822.0,0.00019418]
[1633046542174,0.31632695,43823.0,43822.0,0.00019418]
[1633046542372,0.28074133,43823.0,43822.0,0.00019418]
[1633046543175,0.56248663,43823.0,43822.0,0.00019418]
[1633046543777,0.746976,43823.0,43822.0,0.00019418]
[1633046543977,0.951576,43823.0,43822.0,0.00019418]
[1633046544175,0.95432225,43823.0,43822.0,0.00019418]
[1633046544377,1.26432225,43823.0,43822.0,0.00019418]
[1633046544781,1.33108422,43823.0,43822.0,0.00019418]
[1633046544981,0.87085816,43823.0,43822.0,0.00019418]
[1633046545178,0.81725816,43823.0,43822.0,0.00019418]
[1633046545377,0.28451286,43823.0,43822.0,0.00019418]
[1633046545580,0.05478786,43823.0,43822.0,0.00019418]
[1633046545779,0.05353652,43823.0,43822.0,0.00019418]
[1633046545979,0.05252019,43823.0,43822.0,0.00019418]
[1633046546281,0.00126966,43833.0,43830.0,0.21862145]
[1633046546479,0.00126966,43833.0,43828.0,0.10159151]
[1633046546678,0.00126966,43833.0,43824.0,0.18352301]
[1633046546879,0.00126966,43833.0,43823.0,0.03468923]
[1633046547076,0.00126966,43833.0,43828.0,0.006]
[1633046547077,0.34236,43831.0,43828.0,0.006]
[1633046547280,0.00120467,43829.0,43828.0,0.006]
[1633046547880,0.05126966,43833.0,43828.0,0.00724092]
[1633046547881,0.05,43833.0,43828.0,0.00724092]
[1633046548278,0.05,43833.0,43829.0,0.0005301]
[1633046548477,0.05,43833.0,43830.0,0.20094802]
[1633046548778,0.05,43833.0,43832.0,0.8651498]
[1633046548982,0.189117,43842.0,43832.0,1.0087898]
[1633046549177,0.189117,43842.0,43832.0,0.2587898]
[1633046549178,0.048,43833.0,43832.0,0.2587898]
[1633046550177,0.048,43833.0,43832.0,0.27506102]
[1633046550381,0.00124988,43841.0,43832.0,0.47185268]
[1633046550578,0.2281765,43845.0,43832.0,0.47185268]
[1633046550778,0.00129468,43846.0,43836.0,0.85129548]
[1633046550978,0.00129468,43846.0,43836.0,1.10129548]
[1633046551179,0.00129468,43846.0,43836.0,0.85182558]
[1633046551180,0.18672443,43837.0,43836.0,0.85182558]
[1633046551378,0.04802443,43837.0,43836.0,0.85182558]
[1633046551578,0.04802443,43837.0,43836.0,0.93767516]
[1633046551978,2.443e-05,43837.0,43836.0,0.85182558]
[1633046552478,0.00122614,43853.0,43836.0,0.85182558]
[1633046552681,0.00122614,43853.0,43846.0,0.18674229]
[1633046552879,0.00122614,43853.0,43847.0,0.15811271]
[1633046553078,0.19908359,43849.0,43837.0,0.18730926]
[1633046553682,0.62351052,43863.0,43844.0,1.1]
[1633046553888,0.20851977,43884.0,43881.0,0.23140301]
[1633046553889,0.00571874,43882.0,43881.0,0.23140301]
[1633046554087,0.0008,43884.0,43882.0,2.81273686]
[1633046554283,0.01516613,43899.0,43893.0,0.19355759]
[1633046554504,0.086993,43905.0,43901.0,0.76056332]
[1633046554505,0.0198894,43905.0,43901.0,0.76056332]
[1633046554688,0.02705887,43914.0,43911.0,0.1194003]
[1633046554882,0.02705887,43914.0,43911.0,0.26074108]
[1633046555385,0.00129682,43912.0,43911.0,0.28974108]
[1633046555780,0.00129682,43912.0,43911.0,0.38974108]
[1633046555981,0.00129682,43912.0,43911.0,0.39027118]
[1633046556181,0.00129682,43912.0,43911.0,0.03020546]
[1633046556386,0.14471422,43910.0,43904.0,0.00127323]
[1633046556583,0.00128839,43906.0,43902.0,0.1459891]
[1633046556784,0.14471422,43910.0,43902.0,0.1459891]
[1633046556982,0.14471422,43910.0,43906.0,0.0772475]
[1633046557184,0.12971422,43910.0,43909.0,0.00126599]
[1633046557382,0.12971422,43910.0,43909.0,0.1778799]
[1633046557581,0.12971422,43910.0,43909.0,0.0037407]
[1633046557781,0.12971422,43910.0,43909.0,0.43143245]
[1633046558053,0.12971422,43910.0,43909.0,0.71335249]
[1633046558184,0.00129682,43912.0,43910.0,0.8]
[1633046558387,0.02705887,43914.0,43912.0,0.75]
[1633046558582,0.15078291,43916.0,43913.0,0.10128543]
[1633046558787,0.15078291,43916.0,43913.0,0.1]
[1633046558986,0.15078291,43916.0,43912.0,0.00121261]
[1633046559185,0.15078291,43916.0,43915.0,0.11828291]
[1633046559387,0.15078291,43916.0,43915.0,0.18455188]
[1633046559585,0.15078291,43916.0,43915.0,0.18575312]
[1633046560182,0.15078291,43916.0,43915.0,0.27798942]
[1633046560385,0.15078291,43916.0,43915.0,0.18575312]
[1633046560590,0.15078291,43916.0,43915.0,0.00173134]
[1633046561198,0.01303051,43925.0,43918.0,0.00062]
[1633046561390,0.01303051,43925.0,43919.0,0.00122976]
[1633046561587,0.01303051,43925.0,43921.0,0.00129581]
[1633046562183,0.01303051,43925.0,43921.0,0.00122838]
[1633046562593,0.15059028,43921.0,43918.0,0.00062]
[1633046562787,0.229725,43920.0,43918.0,0.00062]